[Event "Dutch Open 2022"]
[Site "Dieren"]
[Date "2022.07.29"]
[Round "4.2"]
[White "De Winter, Arthur"]
[Black "Elgersma, Onno"]
[Result "1/2-1/2"]
[ECO "B11"]
[WhiteElo "2150"]
[BlackElo "2316"]
[Annotator "TA"]
[PlyCount "130"]
[EventDate "2022.07.14"]
[EventType "swiss"]
[EventCountry "NED"]
[SourceTitle "playchess.com"]
[Source "ChessBase"]
[SourceQuality "1"]
[TimeControl "40/5400+30:1800+30"]

{[%evp 10,130,30,31,32,29,29,11,11,0,0,5,20,0,22,0,12,8,19,4,7,4,4,0,7,9,32,29,29,29,29,27,26,27,33,25,26,26,33,10,12,0,0,0,0,0,8,-12,0,0,0,0,0,0,0,0,44,23,94,43,35,36,18,21,31,0,51,24,32,21,44,46,39,42,29,0,0,0,0,0,0,0,0,0,0,0,0,-8,-8,-8,-8,-8,0,0,0,0,0,0,0,0,0,-16,-16,-16,-16,-16,-16,-16,-16,-16,-16,-16,-16,-16,-16,-16,-16,-16,-16,-16,-16,-16,-16]} 1. e4 {[%emt 0:00:03]} c6 {[%emt 0:00:07]} 2. Nf3 {[%emt 0:00:05]} d5 {[%emt 0:00:18]} 3. Nc3 {[%emt 0:00:04]} dxe4 {[%emt 0:00:32]} 4. Nxe4 {[%emt 0:00:04]} Nf6 {[%emt 0:00:08]} 5. Qe2 {[%emt 0:00:06]} Nxe4 {[%emt 0:00:16]} 6. Qxe4 {[%emt 0:00:04]} Qa5 {[%emt 0:00:11] B11: Caro-Kann: Two Knights Variation.} 7. Bc4 {[%emt 0:02:27]} Bf5 {[%emt 0:01:02]} 8. Qf4 {[%emt 0:01:25][%cal Ob2b4]} e6 {[%emt 0:00:10]} 9. c3 {[%emt 0:01:42]} Nd7 {[%emt 0:02:14][%cal Bb8d7,Bd7b6,Bb6d5][%mdl 32]} 10. O-O {[%emt 0:01:57]} Be7 {[%emt 0:00:16][%cal Og7g5]} 11. d4 {[%emt 0:03:36]} O-O {[%emt 0:00:20]} 12. Bd2 {[%emt 0:06:48] [#]} Qd8 $146 {[%emt 0:03:29]} ({Predecessor:} 12... Rad8 13. a4 Bg6 14. b4 Qf5 15. a5 Nf6 16. Qxf5 Bxf5 17. Ra2 Ne4 18. Be1 Bf6 {0-1 (52) Kasioumis,V (2257)-Bailet,P (2500) Cattolica 2020}) 13. Rfe1 {[%emt 0:06:21]} a5 {[%emt 0:06:10]} 14. Rad1 {[%emt 0:10:24]} Nb6 {[%emt 0:05:57]} 15. Bf1 {[%emt 0:04:00]} Nd5 {[%emt 0:09:21]} 16. Qe5 {[%emt 0:01:14]} Bd6 {[%emt 0:09:12]} 17. Qe2 {[%emt 0:00:40]} Bg4 {[%emt 0:07:20]} 18. h3 {[%emt 0:09:13]} Bh5 {[%emt 0:00:38]} 19. g4 {[%emt 0:00:45]} Bg6 {[%emt 0:00:05]} 20. Ne5 {[%emt 0:00:21]} Bxe5 {[%emt 0:10:06]} 21. Qxe5 {[%emt 0:03:45]} b5 {[%emt 0:00:36]} 22. Bg2 {[%emt 0:02:49]} a4 {[%emt 0:00:45]} 23. Qg3 {[%emt 0:04:47]} Qd7 {[%emt 0:05:00]} 24. h4 {[%emt 0:06:51] [#] Black must now prevent h5.} h5 {[%emt 0:04:45]} 25. Bf3 {[%emt 0:02:48]} hxg4 {[%emt 0:01:48]} 26. Bxg4 {[%emt 0:01:12]} Bf5 {[%emt 0:06:15]} 27. Bf3 {[%emt 0:03:46]} f6 {[%emt 0:00:37]} 28. Re2 {[%emt 0:04:55]} Qf7 {[%emt 0:03:28]} 29. Rde1 {[%emt 0:04:21]} Rae8 {[%emt 0:02:42]} 30. Bf4 {[%emt 0:05:24]} Rd8 {[%emt 0:10:42]} 31. Bd6 {[%emt 0:02:24]} Rfe8 {[%emt 0:00:03]} 32. Bc5 {[%emt 0:00:24]} Bh7 {[%emt 0:04:07]} 33. Bg2 {[%emt 0:02:40] A strong pair of Bishops.} f5 {[%emt 0:05:15]} (33... Bg6 $11) 34. f4 {[%emt 0:01:04] White is more active.} (34. Qg5 $16) 34... Bg6 $14 {[%emt 0:02:07]} 35. b3 {[%emt 0:01:49]} axb3 {[%emt 0:00:23]} 36. axb3 {[%emt 0:00:04] With the idea c4.} Bh5 {[%emt 0:00:18]} 37. Re5 {[%emt 0:00:13]} Qg6 {[%emt 0:01:11]} ({Black should play} 37... Rc8 $11) 38. Qg5 {[%emt 0:05:18] And now c4 would win.} Rc8 {[%emt 0:00:49]} 39. c4 {[%emt 0:02:21]} bxc4 {[%emt 0:00:03]} 40. bxc4 {[%emt 0:00:07]} Qxg5 {[%emt 0:00:35]} 41. fxg5 {[%emt 0:30:10]} Nf4 {[%emt 0:02:15]} 42. Bf1 {[%emt 0:00:00] Prevents Nd3.} Ng6 {[%emt 0:07:34] The position is equal.} 43. Rxe6 {[%emt 0:00:00]} Rxe6 {[%emt 0:01:07]} 44. Rxe6 {[%emt 0:00:00]} Nxh4 {[%emt 0:00:05]} 45. Kf2 {[%emt 0:00:00]} Nf3 $1 {[%emt 0:10:07]} 46. Bh3 {[%emt 0:00:00]} f4 {[%emt 0:07:39]} 47. Bg2 {[%emt 0:00:00]} Bf7 {[%emt 0:02:12]} 48. Rd6 {[%emt 0:00:00]} Nxg5 {[%emt 0:00:03]} 49. Rxc6 {[%emt 0:00:00] [#]} Nh3+ $1 {[%emt 0:00:59]} 50. Ke1 {[%emt 0:00:00]} Rxc6 {[%emt 0:01:55]} 51. Bxc6 {[%emt 0:00:00]} Bxc4 $11 {[%emt 0:00:03][%mdl 4096] Endgame KBB-KBN} 52. d5 {[%emt 0:00:00]} Ng5 {[%emt 0:00:04]} 53. Be7 {[%emt 0:01:49]} Nf7 {[%emt 0:00:56]} 54. d6 {[%emt 0:00:33]} Ne5 {[%emt 0:01:48]} 55. d7 {[%emt 0:00:49]} Nxc6 {[%emt 0:00:03]} 56. d8=Q+ {[%emt 0:00:03]} Nxd8 {[%emt 0:00:05]} 57. Bxd8 {[%emt 0:00:02] KB-KB} Kf7 {[%emt 0:00:57] ( -> ...Kg6)} 58. Bg5 {[%emt 0:00:05]} f3 {[%emt 0:00:19]} 59. Kf2 {[%emt 0:00:01]} Kg6 {[%emt 0:00:11]} 60. Bf4 {[%emt 0:00:04]} Bd5 {[%emt 0:00:14]} 61. Bb8 {[%emt 0:00:02]} Kf5 {[%emt 0:00:16]} 62. Bg3 {[%emt 0:00:07]} Kg4 {[%emt 0:00:08]} 63. Bb8 {[%emt 0:00:03]} Kh3 {[%emt 0:00:04]} 64. Bg3 {[%emt 0:00:03]} g5 {[%emt 0:00:03][%cal Bg7g5,Bg5g4][%mdl 32]} 65. Bb8 {[%emt 0:00:02]} g4 {[%emt 0:00:40] Weighted Error Value: White=0.06 (flawless) /Black=0.07 (flawless)} 1/2-1/2

[Event "Dutch Open 2022"]
[Site "Dieren"]
[Date "2022.07.29"]
[Round "4.3"]
[White "Van Baar, Esper"]
[Black "Grutter, Tim"]
[Result "1/2-1/2"]
[ECO "B22"]
[WhiteElo "2281"]
[BlackElo "2246"]
[Annotator "TA"]
[PlyCount "113"]
[EventDate "2022.07.14"]
[EventType "swiss"]
[EventCountry "NED"]
[SourceTitle "playchess.com"]
[Source "ChessBase"]
[SourceQuality "1"]
[TimeControl "40/5400+30:1800+30"]

{[%evp 12,113,14,6,0,6,0,10,40,33,32,18,31,31,30,33,81,64,57,33,41,48,34,0,0,0,0,0,0,0,0,0,0,0,0,-7,0,0,0,0,0,0,0,0,0,0,0,0,0,-3,0,-24,-36,-27,-20,-34,-22,-96,-99,-126,-98,-160,-122,-137,-60,-60,-60,-60,-60,-66,-60,-60,-14,-47,-47,-60,-24,-162,0,0,0,0,0,0,0,0,0,0,0,0,0,0,0,0,0,0,0,0,0,0,0,0,0,0]} 1. e4 {[%emt 0:00:05]} c5 {[%emt 0:02:32]} 2. Nf3 {[%emt 0:00:10]} e6 {[%emt 0:00:05]} 3. c3 {[%emt 0:00:07]} d5 {[%emt 0:00:09]} 4. exd5 {[%emt 0:00:07]} Qxd5 {[%emt 0:00:05]} 5. d4 {[%emt 0:00:05]} Nf6 {[%emt 0:00:03]} 6. Na3 {[%emt 0:02:37]} Nc6 {[%emt 0:03:47]} 7. Be3 {[%emt 0:10:40] White wants to play Nb5.} cxd4 {[%emt 0:04:45] B22: Sicilian: 2 c3.} 8. Nb5 $1 {[%emt 0:00:42]} Qd8 {[%emt 0:00:29] Against Nc7+} 9. Nbxd4 {[%emt 0:00:43]} Nxd4 {[%emt 0:02:06]} 10. Qxd4 {[%emt 0:03:33]} (10. Bxd4 {feels hotter.} Qc7 11. Be5 Qb6 12. Bd3) 10... Qxd4 {[%emt 0:02:53]} 11. Bxd4 {[%emt 0:00:37]} Be7 {[%emt 0:08:29]} 12. g3 {[%emt 0:02:23]} O-O {[%emt 0:12:02]} 13. Bg2 {[%emt 0:00:27]} Nd7 {[%emt 0:01:05]} (13... Nd5 $14) 14. O-O {[%emt 0:01:54]} f6 {[%emt 0:01:16] [#]} 15. Rfd1 $146 {[%emt 0:03:25]} ({Predecessor:} 15. c4 e5 16. Bc3 Nc5 17. b3 Be6 18. Rfd1 Rac8 19. Rac1 b6 20. Ne1 Rfd8 21. Rxd8+ Rxd8 22. Nc2 Kf7 {½-½ (22) Frostick,C (2082)-Bretsnajdr,V (2230) Prague 2020}) 15... e5 {[%emt 0:04:16]} 16. Be3 {[%emt 1:10:55]} Bc5 {[%emt 0:01:47]} 17. Bh3 {[%emt 0:00:00] aiming for Be6+.} Bxe3 {[%emt 0:04:17]} 18. Be6+ {[%emt 0:00:00]} Kh8 {[%emt 0:00:07][%cal Oe3f2]} 19. Bxd7 {[%emt 0:00:00]} Bb6 {[%emt 0:00:21]} 20. Bxc8 {[%emt 0:00:00]} Raxc8 {[%emt 0:00:12]} 21. Rd7 {[%emt 0:00:00]} Rc7 {[%emt 0:00:18]} 22. Rad1 {[%emt 0:00:00]} Kg8 {[%emt 0:00:52]} 23. Kf1 {[%emt 0:00:00]} Rxd7 {[%emt 0:01:20]} 24. Rxd7 $11 {[%emt 0:00:00][%mdl 4096] Endgame KRB-KRN} Rf7 {[%emt 0:00:07]} 25. Rd5 {[%emt 0:00:00]} Rc7 {[%emt 0:05:48]} 26. a4 {[%emt 0:00:00]} Kf7 {[%emt 0:01:47]} 27. a5 {[%emt 0:00:00]} Bc5 {[%emt 0:01:47]} 28. Ke2 {[%emt 0:00:00]} Be7 {[%emt 0:01:39]} 29. Nd2 {[%emt 0:00:00]} Ke6 {[%emt 0:02:04]} 30. Rb5 {[%emt 0:00:00]} Kd6 {[%emt 0:07:50]} 31. Kd3 {[%emt 0:00:00]} Kc6 {[%emt 0:03:06]} 32. c4 {[%emt 0:00:00]} Rd7+ {[%emt 0:02:05]} 33. Kc2 $1 {[%emt 0:00:00]} Bd8 {[%emt 0:09:18]} 34. Ne4 {[%emt 0:00:00]} (34. b4 $11) 34... Rd4 $17 {[%emt 0:02:55][%csl LRc4,LRe4]} 35. Rc5+ {[%emt 0:00:00]} Kd7 {[%emt 0:00:03]} 36. Nd2 {[%emt 0:08:54] [#]} ({White should try} 36. Nc3) 36... a6 $1 {[%emt 0:06:18]} 37. Nb3 {[%emt 0:00:59] [#]} Be7 {[%emt 0:01:02]} (37... Rd6 $1 $17 {Hoping for ...b6.} 38. f4 e4) 38. Nxd4 $15 {[%emt 0:00:35]} Bxc5 {[%emt 0:00:05] KB-KN} 39. Nf5 {[%emt 0:00:21]} Bxf2 {[%emt 0:02:06] White must now prevent ...g6.} 40. Nxg7 {[%emt 0:00:11]} Be1 {[%emt 0:00:13]} 41. Kd3 {[%emt 0:01:58]} Kd6 {[%emt 0:04:11]} (41... Bxa5 $15 42. g4 Kc6) 42. g4 {[%emt 0:04:12]} Bxa5 {[%emt 0:02:25]} 43. h4 {[%emt 0:03:32]} Kc5 {[%emt 0:05:46] And now ...Kb4 would win.} 44. Nh5 {[%emt 0:04:23]} (44. Ne6+ $1 $11 Kd6 45. Ng7) 44... Be1 $2 {[%emt 0:12:25]} ({Black should play} 44... Bd8 $19 {Threatens to win with ...Kb4.} 45. Kc3 Kd6) 45. Nxf6 $11 {[%emt 0:01:40] The position is equal.} Bxh4 {[%emt 0:00:04]} 46. Nxh7 {[%emt 0:02:51]} e4+ {[%emt 0:00:39]} 47. Kxe4 {[%emt 0:02:01]} Kxc4 {[%emt 0:00:05]} 48. g5 {[%emt 0:00:45]} Bxg5 {[%emt 0:02:43]} 49. Nxg5 {[%emt 0:00:11] KN-KPP} Kb3 {[%emt 0:00:06]} 50. Kd4 {[%emt 0:04:07]} b6 {[%emt 0:03:45]} 51. Ne6 {[%emt 0:04:28]} a5 {[%emt 0:01:35]} 52. Nc7 {[%emt 0:01:27]} Kxb2 {[%emt 0:00:27]} 53. Kc4 {[%emt 0:00:17]} a4 {[%emt 0:00:16]} 54. Nb5 {[%emt 0:00:09]} a3 {[%emt 0:00:05]} 55. Nxa3 {[%emt 0:00:05]} Kxa3 {[%emt 0:00:03]} 56. Kb5 {[%emt 0:00:04]} Ka2 {[%emt 0:00:04]} 57. Kxb6 {[%emt 0:01:31] Weighted Error Value: White=0.15 (very precise) /Black=0.12 (very precise)} 1/2-1/2

[Event "Dutch Open 2022"]
[Site "Dieren"]
[Date "2022.07.29"]
[Round "4.4"]
[White "Mollema, Thomas"]
[Black "Ypma, Peter"]
[Result "1/2-1/2"]
[ECO "C47"]
[WhiteElo "2235"]
[BlackElo "2346"]
[Annotator "TA"]
[PlyCount "36"]
[EventDate "2022.07.14"]
[EventType "swiss"]
[EventCountry "NED"]
[SourceTitle "playchess.com"]
[Source "ChessBase"]
[SourceQuality "1"]
[TimeControl "40/5400+30:1800+30"]

{[%evp 15,21,0,0,0,4,4,-7,-4]} 1. e4 {[%emt 0:00:02]} e5 {[%emt 0:00:08]} 2. Nf3 {[%emt 0:00:08]} Nc6 {[%emt 0:00:11]} 3. Nc3 {[%emt 0:02:58]} Nf6 {[%emt 0:00:11]} 4. d4 {[%emt 0:00:05]} exd4 {[%emt 0:00:13]} 5. Nxd4 {[%emt 0:00:05]} Bb4 {[%emt 0:00:17]} 6. Nxc6 {[%emt 0:00:07]} bxc6 {[%emt 0:00:06]} 7. Bd3 {[%emt 0:00:04]} O-O {[%emt 0:00:38]} 8. O-O {[%emt 0:00:21]} d5 {[%emt 0:00:05] The position is equal.} 9. exd5 {[%emt 0:00:05] C47: Scotch Four Knights and Four Knights with 4 g3.} Bg4 {[%emt 0:00:15]} 10. Be2 {[%emt 0:01:00]} Bxe2 {[%emt 0:02:20]} 11. Nxe2 {[%emt 0:00:51] [#] An even fight not without its subleties.  Weighted Error Value: White=0.00 (flawless) /Black=0.02 (flawless)} {Predecessor:} cxd5 $146 12. Bg5 Be7 13. Nd4 Qd7 14. Qd3 Rfe8 15. Rad1 Ne4 16. Bxe7 Rxe7 17. c4 Rae8 18. cxd5 Qxd5 {½-½ (45) Carlsen,M (2861)-Nakamura,H (2761) Abidjan 2019} 1/2-1/2

[Event "Dutch Open 2022"]
[Site "Dieren"]
[Date "2022.07.29"]
[Round "4.5"]
[White "Domalchuk-Jonasson, Aleksandr"]
[Black "Baselmans, Sam"]
[Result "1/2-1/2"]
[ECO "D31"]
[WhiteElo "2244"]
[BlackElo "2182"]
[Annotator "TA"]
[PlyCount "28"]
[EventDate "2022.07.14"]
[EventType "swiss"]
[EventCountry "NED"]
[SourceTitle "playchess.com"]
[Source "ChessBase"]
[SourceQuality "1"]
[TimeControl "40/5400+30:1800+30"]

{[%evp 9,28,24,31,28,25,24,23,6,29,0,0,0,0,0,0,0,0,0,10,0,0]} 1. d4 {[%emt 0:00:15]} d5 {[%emt 0:00:13]} 2. Nf3 {[%emt 0:00:37]} e6 {[%emt 0:00:09]} 3. c4 {[%emt 0:01:19]} a6 {[%emt 0:00:18]} 4. cxd5 {[%emt 0:01:55]} exd5 {[%emt 0:00:07]} 5. Nc3 {[%emt 0:00:11]} h6 {[%emt 0:00:20]} 6. Bf4 {[%emt 0:02:24] D31: Queen's Gambit Declined: Semi-Slav without ...Nf6 (+ Marshall Gambit and Noteboom) and Exchange Variation lines without ...Nf6.} Nf6 {[%emt 0:00:27]} 7. e3 {[%emt 0:02:16]} Bd6 {[%emt 0:00:23]} 8. Bd3 {[%emt 0:03:08] White has an edge.} O-O {[%emt 0:02:09]} 9. O-O {[%emt 0:00:22]} Bxf4 {[%emt 0:02:56] The position is equal.} 10. exf4 {[%emt 0:00:04]} Bg4 {[%emt 0:00:09]} 11. Be2 {[%emt 0:16:11]} Bxf3 {[%emt 0:02:25]} 12. Bxf3 {[%emt 0:00:10]} Nc6 {[%emt 0:01:30]} 13. Re1 {[%emt 0:07:07] [#]} Qd7 $146 {[%emt 0:02:02]} ({Predecessor:} 13... Qd6 14. Qd2 Rad8 15. Rad1 Na7 16. Re5 c6 17. Rde1 Nb5 18. Na4 Nd7 19. Re7 Nc7 {0-1 (47) Injac,T (2284)-Vallejo Pons,F (2704) Valencia 2019}) 14. Qd2 {[%emt 0:09:04]} Rfe8 {[%emt 0:02:13] Not much happened in this game.  Weighted Error Value: White=0.08 (flawless) /Black=0.04 (flawless)} 1/2-1/2

[Event "Dutch Open 2022"]
[Site "Dieren"]
[Date "2022.07.29"]
[Round "4.6"]
[White "Binnendijk, Ferdinand"]
[Black "Sekar, B."]
[Result "0-1"]
[ECO "A29"]
[WhiteElo "2147"]
[BlackElo "2241"]
[Annotator "TA"]
[PlyCount "126"]
[EventDate "2022.07.14"]
[EventType "swiss"]
[EventCountry "NED"]
[SourceTitle "playchess.com"]
[Source "ChessBase"]
[SourceQuality "1"]
[TimeControl "40/5400+30:1800+30"]

{[%evp 23,126,4,11,-29,-22,-20,-38,-44,-52,-54,-60,-124,-107,-203,-27,-52,-38,-58,-49,-79,-54,-111,-23,-8,66,0,0,0,0,-27,244,135,138,-34,-33,-247,43,47,120,-13,-22,-20,-28,-194,-190,-194,-184,-181,-189,-172,-173,-254,-236,-250,-251,-258,-257,-265,-157,-183,-183,-140,0,0,0,0,0,0,0,0,0,0,0,0,0,0,0,0,0,0,0,0,0,-408,-332,-1000,-527,-1124,-1137,-894,-979,-1331,-1070,-29964,-29965,-2132,-1369,-29974,-29973,-29975,-29975,-29974,-29975,-29960,-5106]} 1. c4 {[%emt 0:00:02]} Nf6 {[%emt 0:00:41]} 2. Nc3 {[%emt 0:00:14]} e5 {[%emt 0:00:39]} 3. g3 {[%emt 0:00:33]} d5 {[%emt 0:02:55]} 4. cxd5 {[%emt 0:00:11]} Nxd5 {[%emt 0:00:02]} 5. Bg2 {[%emt 0:01:05]} Nb6 {[%emt 0:00:09]} 6. Nf3 {[%emt 0:01:54]} Nc6 {[%emt 0:00:13]} 7. d3 {[%emt 0:02:21]} Be7 {[%emt 0:00:30]} 8. a3 {[%emt 0:03:02]} O-O {[%emt 0:02:53]} 9. O-O {[%emt 0:02:10]} Re8 {[%emt 0:00:23]} 10. b4 {[%emt 0:01:26]} Bf8 {[%emt 0:00:33]} 11. Bb2 {[%emt 0:01:54]} a5 {[%emt 0:23:21]} 12. b5 {[%emt 0:02:41]} Nd4 {[%emt 0:00:04]} 13. Re1 {[%emt 0:13:37] A29: English Opening: Four Knights Variation with 4 g3.} a4 $1 {[%emt 0:02:20]} 14. e3 {[%emt 0:01:39]} Nb3 {[%emt 0:03:28]} 15. Rb1 {[%emt 0:00:47] Black is slightly better.} Bf5 {[%emt 0:05:59] [#]} 16. e4 $146 {[%emt 0:05:50]} ({Predecessor:} 16. Bf1 Nc5 17. e4 Bg4 18. h3 Bxf3 19. Qxf3 Nb3 20. Red1 Bc5 21. Ne2 Qd6 22. d4 exd4 {1-0 (64) Rahman,Z (2360)-Abdelnabbi,I (2395) Manila 1992}) 16... Bg4 {[%emt 0:03:48]} 17. Ne2 {[%emt 0:07:08] Inhibits Nd4.} (17. Nxa4 $1 $15 Nxa4 18. Qxb3) 17... Qf6 $17 {[%emt 0:06:39] Black is more active.} 18. Nxe5 {[%emt 0:02:14]} (18. Nc1 $17) 18... Bxe2 $2 {[%emt 0:17:52]} (18... Rxe5 $19 19. f3 Bxf3 $1 20. Bxf3 Qxf3 $1 21. Bxe5 Rd8) 19. Qxe2 {[%emt 0:04:37][%cal Oe5d7] [#]} Bxa3 $1 {[%emt 0:05:38]} 20. Ng4 {[%emt 0:06:41]} (20. Nd7 Qe7) 20... Qe7 {[%emt 0:01:19]} 21. Bxa3 {[%emt 0:13:17]} Qxa3 {[%emt 0:00:08]} 22. e5 {[%emt 0:01:14]} (22. Ne3 $15) 22... Rab8 {[%emt 0:02:10]} (22... Qc5 $17 {...Nd5 is the strong threat.} 23. Bxb7 Rad8) 23. Be4 $132 {[%emt 0:08:16][%cal Og4f6][%mdl 2048] Against Nd5. White has counterplay} Nd7 {[%emt 0:06:51] [#] Inhibits Nf6+.} (23... Qf8 $11) 24. Bd5 {[%emt 0:02:58]} (24. Nh6+ $1 $14 gxh6 25. Qg4+ Kf8 26. Qxd7) 24... Nd4 {[%emt 0:09:49] Pair of Knights!} 25. Nh6+ {[%emt 0:03:44]} Kf8 $1 {[%emt 0:00:21]} 26. Qg4 {[%emt 0:01:54] [#]} Ne6 {[%emt 0:00:37][%mdl 8192] [#]} (26... Qc5 $1 $11 {and Black has nothing to worry.} 27. Qxd7 Re7) 27. Nxf7 $1 {[%emt 0:01:19][%mdl 512]} Qe7 $16 {[%emt 0:01:36] [#]} 28. Re3 $2 {[%emt 0:03:11]} Kxf7 $15 {[%emt 0:01:57]} 29. f4 $2 {[%emt 0:04:00]} (29. Rc1 $15 Ndf8 30. Qxa4) 29... Kg8 $2 {[%emt 0:00:01]} ({Black should play} 29... Qc5 $1 $19 {[%cal Rc5d5]} 30. Qf3 Kf8 31. Bxe6 Rxe6) 30. f5 $1 $14 {[%emt 0:01:45][%csl LRa4,LRe6][%cal Rd5e6][%mdl 64] Pin} Qc5 {[%emt 0:00:01]} (30... Ndf8 $14) 31. Bxe6+ {[%emt 0:00:12] [#]} (31. Qe4 $1 $16) 31... Rxe6 $1 $11 {[%emt 0:00:03] The board is on fire.} 32. d4 {[%emt 0:00:24]} Qc2 {[%emt 0:01:23]} 33. Rbe1 {[%emt 0:00:05]} (33. Rf1 $1 $11 Re7 34. f6) 33... Rh6 $19 {[%emt 0:01:05]} 34. R3e2 {[%emt 0:00:31]} Qc4 {[%emt 0:01:10]} 35. f6 {[%emt 0:00:59] [#]} Nxf6 $1 {[%emt 0:00:01]} 36. exf6 {[%emt 0:00:04]} Rxf6 {[%emt 0:00:09]} 37. Re8+ {[%emt 0:01:43]} (37. Re7 $142 Rf7 38. Re8+ Rxe8 39. Rxe8+ Rf8 40. Rxf8+ Kxf8 41. Qf5+ Ke8 42. Qe5+ Kf8 43. Qf5+ Kg8 44. Qc8+ Kf7 45. Qf5+ Kg8 46. Qc8+ Kf7 47. Qf5+ Kg8) 37... Rxe8 {[%emt 0:01:25]} 38. Rxe8+ {[%emt 0:00:04]} Rf8 $1 {[%emt 0:00:08]} 39. Rxf8+ {[%emt 0:00:24]} Kxf8 {[%emt 0:00:01][%mdl 4096] Endgame KQ-KQ} 40. Qf5+ {[%emt 0:01:57]} Ke7 {[%emt 0:01:20]} (40... Ke8 $1 $19 41. Qe5+ Kd8 42. Qxg7 Qc1+ 43. Kf2 Qd2+ 44. Kf3 Qd3+ 45. Kf4 Qg6 46. Qf8+ Kd7) 41. Qg5+ $17 {[%emt 0:05:28]} Ke8 $1 {[%emt 0:02:35]} 42. Qxg7 {[%emt 0:01:08]} Qxb5 {[%emt 0:06:44]} ({Reject} 42... a3 $6 43. Qe5+ Kd8 44. Qf6+ Ke8 45. Qe5+ Kf7 46. Qf5+ Kg8 47. Qg5+ Kf8 48. Qf6+ Ke8 49. Qe5+ $11) (42... b6 $1 $17 {And now ...h5 would win.} 43. Qh8+ Kd7 44. Qxh7+ Kc8 45. Qf5+ Kb8) 43. Qg8+ $11 {[%emt 0:01:35]} Kd7 {[%emt 0:00:44]} 44. Qxh7+ {[%emt 0:02:15]} Kd8 {[%emt 0:05:09]} 45. Qh4+ $1 {[%emt 0:00:54]} Ke8 {[%emt 0:01:36]} 46. Qh8+ {[%emt 0:03:16]} Kf7 {[%emt 0:00:20]} 47. Qh7+ {[%emt 0:01:07]} Kf6 {[%emt 0:00:20]} 48. Qxc7 {[%emt 0:02:53]} Ke6 {[%emt 0:02:27]} 49. Qc8+ {[%emt 0:05:32]} Kd6 {[%emt 0:03:11]} 50. Qd8+ {[%emt 0:01:52]} Kc6 {[%emt 0:01:01]} 51. Qf6+ {[%emt 0:01:49]} Kc7 {[%emt 0:00:33]} 52. h4 {[%emt 0:03:54]} Qb3 {[%emt 0:02:15] White must now prevent ...a3.} 53. Qe5+ $2 {[%emt 0:00:49][%mdl 8192]} (53. Qg5 $11 {and White is okay.}) 53... Kb6 $1 $19 {[%emt 0:00:11]} 54. Qd6+ {[%emt 0:03:59] [#]} (54. d5 a3 55. Qf6+ Kb5 56. d6 Qxg3+ 57. Kf1 Qd3+ 58. Ke1) 54... Ka7 $1 {[%emt 0:00:12]} 55. Qc5+ {[%emt 0:00:11] [#]} Ka6 $1 {[%emt 0:00:07]} 56. Qd6+ {[%emt 0:00:20]} b6 {[%emt 0:00:06] Hoping for ...a3.} 57. Qb8 {[%emt 0:01:27]} a3 {[%emt 0:00:27]} 58. Qa8+ {[%emt 0:01:05]} Kb5 {[%emt 0:00:07]} 59. Qe8+ {[%emt 0:00:14]} Ka5 {[%emt 0:01:41] ( -> ...a2)} 60. Qa8+ {[%emt 0:00:11]} Kb4 {[%emt 0:00:08] Black mates.} 61. Qf8+ {[%emt 0:00:07]} Kc3 {[%emt 0:00:40]} 62. Qf3+ {[%emt 0:00:06]} Kb2 {[%emt 0:01:08]} 63. Qe2+ {[%emt 0:00:45]} Qc2 {[%emt 0:02:22] What a fight!  Weighted Error Value: White=0.74/Black=0.25 (precise)} 0-1

[Event "Dutch Open 2022"]
[Site "Dieren"]
[Date "2022.07.29"]
[Round "4.7"]
[White "Burdalev, Kirill"]
[Black "Bus, Tom"]
[Result "1-0"]
[ECO "A47"]
[WhiteElo "2381"]
[BlackElo "2102"]
[Annotator "TA"]
[PlyCount "59"]
[EventDate "2022.07.14"]
[EventType "swiss"]
[EventCountry "NED"]
[SourceTitle "playchess.com"]
[Source "ChessBase"]
[SourceQuality "1"]
[TimeControl "40/5400+30:1800+30"]

{[%evp 11,59,4,11,4,8,0,30,32,39,21,35,25,27,36,43,0,0,0,0,0,0,0,0,0,0,0,53,15,20,16,44,31,53,22,114,118,110,127,114,98,100,111,195,221,522,518,817,817,786,759]} 1. d4 {[%emt 0:00:35]} Nf6 {[%emt 0:00:25]} 2. Nf3 {[%emt 0:00:24]} e6 {[%emt 0:00:18]} 3. Bf4 {[%emt 0:00:37]} b6 {[%emt 0:01:35]} 4. e3 {[%emt 0:00:22]} Bb7 {[%emt 0:00:21]} 5. Bd3 {[%emt 0:01:20]} Be7 {[%emt 0:02:02]} 6. h3 {[%emt 0:00:02]} c5 {[%emt 0:00:47] is now more promising than 6...0-0.} 7. O-O {[%emt 0:00:20] A47: 1 d4 Nf6 2 Nf3 b6: Torre, London and Colle Systems.} O-O {[%emt 0:03:17]} 8. a4 {[%emt 0:00:27]} cxd4 {[%emt 0:05:04]} 9. exd4 {[%emt 0:00:11] White has an edge.} a6 {[%emt 0:01:09]} 10. Nbd2 {[%emt 0:02:35]} d6 {[%emt 0:01:22]} 11. Bh2 {[%emt 0:01:25]} Nbd7 {[%emt 0:02:46]} 12. Re1 {[%emt 0:03:43]} Re8 {[%emt 0:00:32]} 13. a5 {[%emt 0:00:49]} b5 {[%emt 0:08:44]} 14. c4 {[%emt 0:00:03]} bxc4 {[%emt 0:00:59]} 15. Nxc4 {[%emt 0:00:02]} Qb8 {[%emt 0:00:55] [#]} 16. Rc1 $146 {[%emt 0:01:57]} ({Predecessor:} 16. Nfd2 Bd5 17. Bf1 Ra7 18. Re3 Rb7 19. b3 Rd8 20. Rc1 Ne8 21. Rec3 Bf6 22. Ne3 Bxd4 23. Nxd5 exd5 {1-0 (61) Kamsky,G (2674)-Martinez Alcantara,J (2620) Chess.com INT 2020}) 16... Bd5 {[%emt 0:02:12]} 17. Nfd2 {[%emt 0:00:48]} Qb4 {[%emt 0:06:25]} 18. Rc3 {[%emt 0:20:12]} Qb7 {[%emt 0:08:24]} (18... g6 $11) 19. Bf1 {[%emt 0:03:04]} Reb8 {[%emt 0:14:51]} 20. Qc2 {[%emt 0:07:42]} Bf8 {[%emt 0:03:21]} 21. Ra1 {[%emt 0:22:57]} ({Much weaker is} 21. Bxd6 Bxc4 22. Nxc4 Bxd6 23. Nxd6 Qb4 $15) 21... g6 {[%emt 0:09:06]} 22. Rc1 {[%emt 0:09:56]} Qa7 {[%emt 0:05:59]} (22... Ne8 $1 $11 {keeps the balance.}) 23. Nxd6 $16 {[%emt 0:12:05]} Qxd4 {[%emt 0:01:40] [#]} 24. N2c4 $1 {[%emt 0:00:54]} Rb4 {[%emt 0:02:37]} 25. Rd1 {[%emt 0:00:45]} Qa7 {[%emt 0:01:19]} 26. Ne3 {[%emt 0:02:34] Hoping for Rc7. White is more active.} Rab8 {[%emt 0:04:25]} (26... Rd8 $16 {was called for.}) 27. Nc8 $18 {[%emt 0:00:14]} Rxc8 {[%emt 0:01:59]} (27... Qa8 {is tougher.} 28. Bxb8 Rxb8) 28. Rxc8 {[%emt 0:00:03] White is clearly winning.} Bb3 {[%emt 0:00:18]} (28... Qb7 $142 29. Rc7 Qa8) 29. Qc3 {[%emt 0:01:20] [#] And now Qxb4 would win.} Bxd1 {[%emt 0:00:12]} 30. Qxb4 {[%emt 0:00:21] Weighted Error Value: White=0.07 (flawless) /Black=0.31} ({Weaker is} 30. Nxd1 Nd5 31. Qc1 Kg7 $16) 1-0